Cogmind - Beta 15 @@@ ROGUE MODE // 2025.08.02 @ 16:53:54 Player: beans Result: Destroyed by G-34 Mercenary with Small Laser Performance ------------- Evolutions (1) 500 Regions Visited (3) 600 Robots Destroyed (50) 250 Value Destroyed (830) 830 Prototype IDs (1) 20 Alien Tech Used (0) 0 Bonus (22) 22 TOTAL SCORE: 2222 Bonus ------- High Alert Combat Kills 22 Cogmind --------- Core Integrity 0/400 Matter 183/300 Energy 280/280 System Corruption 0% Temperature Cool (8) Movement Core (300) Ox5 Location -9/Materials Parts ------- > --- POWER (1) -------- Cooled Ion Engine > --- PROPULSION (2) --- (None) > --- UTILITY (2) ------ (None) > --- WEAPON (4) ------- Shotgun Shotgun Shotgun > --- INVENTORY (5) ---- Cooled Ion Engine Cooled Ion Engine Mini Grenade Launcher Mini Grenade Launcher Peak State ------------ > --- POWER ------------ Light Ion Engine > --- PROPULSION ------- (None) > --- UTILITY ---------- Particle Charger > --- WEAPON ----------- Shock Rifle Shock Rifle Shock Rifle Shock Rifle > --- INVENTORY -------- Mining Claw [Rating: 16] Favorites ----------- Power Cooled Ion Engine Engine Cooled Ion Engine Propulsion None Utility Particle Charger Device Particle Charger Weapon Shock Rifle Energy Gun Shock Rifle Ballistic Gun Shotgun Ballistic Cannon Improved Light Cannon Launcher Mini Grenade Launcher Build | -11 -10 -10 -9 ------- Run | Yrd Mat Min Mat Slots Evolved 2 | . . . 2 Power . | . . . . Propulsion . | . . . . Utility . | . . . . Weapon 2 | . . . 2 Parts Attached 15 | 2 . . 13 Power 2 | . . . 2 Engine 2 | . . . 2 Core . | . . . . Reactor . | . . . . Propulsion . | . . . . Treads . | . . . . Leg . | . . . . Wheel . | . . . . Hover . | . . . . Flight . | . . . . Utility 1 | . . . 1 Device 1 | . . . 1 Storage . | . . . . Processor . | . . . . Hackware . | . . . . Protection . | . . . . Artifact . | . . . . Weapon 12 | 2 . . 10 Energy Gun 4 | . . . 4 Energy Cannon . | . . . . Ballistic Gun 5 | 2 . . 3 Ballistic Cannon 2 | . . . 2 Launcher 1 | . . . 1 Special Weapon . | . . . . Impact Weapon . | . . . . Slashing Weapon . | . . . . Piercing Weapon . | . . . . Special Melee Weapon . | . . . . Unidentified Prototypes 1 | . . . 1 Parts Lost 10 | . . 2 8 Power 1 | . . . 1 Propulsion . | . . . . Utility 1 | . . . 1 Weapon 8 | . . 2 6 Highest Loss Streak 4 | . . 2 4 To Critical Strikes . | . . . . Average Backups 2 | . . 1 2 Power . | . . . . Propulsion . | . . . . Utility . | . . . . Weapon 1 | . . 1 1 Tool/Special . | . . . . Unused Backups 7 | . . . 7 Power 3 | . . . 3 Propulsion . | . . . . Utility . | . . . . Weapon 3 | . . . 3 Tool/Special 1 | . . . 1 Average Slot Usage (%) 37 | . 28 21 38 Engine 6 | . . . 7 Device 1 | . . . 2 Energy Gun 10 | . . . 11 Ballistic Gun 12 | . 28 21 10 Ballistic Cannon 5 | . . . 5 Peak Build Rating 16 | 2 2 2 16 Average Rating 8 | 1 2 1 9 On Entrance 1 | . 2 2 . Naked Turns 25 | . . 12 13 Heaviest Build 18 | 3 3 3 18 Greatest Support 3 | 3 3 3 3 Greatest Overweight (x) 5 | . . . 5 Average Overweight (x) 1 | . . . 3 Largest Inventory Capacity 5 | 5 5 5 5 Average Capacity 5 | 5 5 5 5 Most Carried 5 | 2 1 1 5 Average Carried 2 | . . 1 2 Final Capacity 5 | 5 5 5 5 Final Carried 4 | . 1 1 4 Class Distribution -------------------- 62% | Mutant 37% | Gunner Dominant Class ---------------- Mutant | -10/Materials Mutant | -10/Mines Mutant | -9/Materials Resources | -11 -10 -10 -9 ----------- Run | Yrd Mat Min Mat Matter Collected 854 | 212 36 19 587 Remotely . | . . . . Salvage Created 1133 | . 45 19 1069 Parts 95 | . 6 1 88 Haulers Intercepted 3 | . . . 3 Recyclers Shooed . | . . . . Parts Field Recycled . | . . . . Retrieved Matter . | . . . . Parts Self-Destructed . | . . . . Prevented . | . . . . Kills | -11 -10 -10 -9 ------- Run | Yrd Mat Min Mat Combat Hostiles Destroyed 21 | . 2 1 18 Guns 13 | . 2 1 10 Cannons 8 | . . . 8 Classes Destroyed 9 | . 2 . 7 Worker 11 | . . . 11 Builder 8 | . 1 . 7 Hauler 3 | . . . 3 Recycler 2 | . . . 2 Operator 1 | . . . 1 Watcher 4 | . . . 4 Swarmer 7 | . 2 1 4 Grunt 12 | . . . 12 Sentry 2 | . . . 2 Best Kill Streak 12 | . 2 1 12 Combat Bots Only 4 | . 2 1 4 Max Kills in Single Turn 4 | . 1 1 4 Gunslinging 1 | . . . 1 Exploded . | . . . . Melee . | . . . . Uniques/NPCs Destroyed . | . . . . Combat | -11 -10 -10 -9 -------- Run | Yrd Mat Min Mat Hostile Shots Fired 192 | . 8 47 137 Missed 57 | . 2 20 35 Hits 135 | . 6 27 102 Projectile 135 | . 6 27 102 Damage Taken 1581 | . 46 262 1273 Core 529 | . 24 98 407 Absorbed by Shields . | . . . . Core Remaining (%) 75 | 100 . 51 . Volleys Fired 105 | . 7 6 92 Largest 4 | . 2 2 4 Hottest 200 | . 40 40 200 Shots Fired 223 | . 14 12 197 Gun 140 | . 14 12 114 Cannon 82 | . . . 82 Launcher 1 | . . . 1 Special . | . . . . Kinetic 167 | . 14 12 141 Thermal . | . . . . Explosive 1 | . . . 1 Electromagnetic 55 | . . . 55 Robot Hit Streak 8 | . 5 4 8 Robot Miss Streak 6 | . 3 3 6 Penetration Max . | . . . . Secondary Targets 2 | . . . 2 Max Gunslinging Chain 1 | . . . 1 Shots Hit Robots 108 | . 8 5 95 Core Hits 59 | . 3 2 54 Critical Kills . | . . . . Critical Parts Destroyed . | . . . . Critical Strikes 2 | . . . 2 Blast 1 | . . . 1 Corrupt 1 | . . . 1 Melee Attacks . | . . . . Impact . | . . . . Slashing . | . . . . Piercing . | . . . . Sneak Attacks . | . . . . Combat Hostiles . | . . . . Follow-up Attacks . | . . . . Damage Inflicted 2621 | . 80 56 2485 Guns 1193 | . 80 56 1057 Cannons 859 | . . . 859 Explosions 569 | . . . 569 Melee . | . . . . Ramming . | . . . . Kinetic 1599 | . 80 56 1463 Thermal 434 | . . . 434 Explosive 135 | . . . 135 Electromagnetic 453 | . . . 453 Impact . | . . . . Slashing . | . . . . Piercing . | . . . . Highest Corruption . | . . . . Average Corruption . | . . . . Corruption Purged . | . . . . Corruption Blocked . | . . . . Overload Shots . | . . . . Overflow Damage 82 | . . . 82 Projectiles 4 | . . . 4 Explosions 78 | . . . 78 Melee . | . . . . Knockbacks 7 | . . . 7 Impact . | . . . . Kinetic 6 | . . . 6 Secondary 1 | . . . 1 Self-Inflicted Damage 185 | . . . 185 Shots 3 | . . . 3 Rammed . | . . . . Targets Rammed . | . . . . Kicked . | . . . . Crushed . | . . . . Highest Temperature 173 | . . 4 173 Average Temperature 57 | . . 4 58 Received Heat Transfer 513 | . . 51 462 Siege Activations . | . . . . Martial Activations . | . . . . Shielding Activations . | . . . . Robots Disrupted . | . . . . Combat Hostiles . | . . . . Robots Corrupted . | . . . . Combat Hostiles . | . . . . Parts Fried 1 | . . . 1 Impact Corruptions . | . . . . Robots Melted . | . . . . Combat Hostiles . | . . . . Parts Melted 1 | . . . 1 Heat Transferred 300 | . . . 300 Parts Sabotaged . | . . . . Parts Stolen . | . . . . Parts Stripped . | . . . . Power Chain Reactions 2 | . . . 2 Alert | -11 -10 -10 -9 ------- Run | Yrd Mat Min Mat Maximum Alert Level 2 | . . . 2 Low Security (%) 54 | 100 100 100 47 Level 1 33 | . . . 38 Level 2 12 | . . . 13 Level 3 . | . . . . Level 4 . | . . . . Level 5 . | . . . . High Security . | . . . . Max Security . | . . . . Peak Influence 462 | . 55 35 462 Initial 15 | . . 15 . Average 169 | . 33 15 191 Influence Increases 899 | . 70 20 809 Destroy 0b10 Robot/C 420 | . 40 20 360 Destroy 0b10 Robot/NC 145 | . 5 . 140 Destroy Leader 104 | . 10 . 94 Disable Machine 150 | . . . 150 Destroy Structure 65 | . . . 65 Lose Combat Pursuer 15 | . 15 . . Influence Decreases 461 | . 30 60 371 Entered New Map 25 | . . 25 . Time Decay 376 | . 30 15 331 Lost Part 60 | . . 20 40 Squads Dispatched 5 | . 1 . 4 Investigation 1 | . . . 1 Extermination . | . . . . Reinforcement 4 | . 1 . 3 Assault . | . . . . Garrison . | . . . . Intercept . | . . . . Searches Triggered . | . . . . Construction Impeded 2 | . . . 2 Haulers Reinforced . | . . . . Active Scanning Responses . | . . . . Cargo Convoy Interrupts . | . . . . Stealth | -11 -10 -10 -9 --------- Run | Yrd Mat Min Mat Distress Signals 2 | . . . 2 Communications Jammed . | . . . . Distress Signals . | . . . . Times Spotted 41 | . 7 5 29 Peak Tracking Total 9 | . 5 5 9 Tactical Retreats 1 | . 1 . . Traps | -11 -10 -10 -9 ------- Run | Yrd Mat Min Mat Traps Triggered . | . . . . Indirectly . | . . . . Trap Hack Attempts . | . . . . Triggered . | . . . . Disarmed . | . . . . Reprogrammed . | . . . . Reused . | . . . . Traps Extracted . | . . . . Installed . | . . . . Triggered . | . . . . Machines | -11 -10 -10 -9 ---------- Run | Yrd Mat Min Mat Machines Disabled 10 | . . . 10 Max in Single Turn 4 | . . . 4 Machines Repaired . | . . . . Machines Dismantled . | . . . . Machines Sabotaged . | . . . . Overloaded Fab Kills . | . . . . Hacking | -11 -10 -10 -9 --------- Run | Yrd Mat Min Mat Machines Accessed . | . . . . Terminals . | . . . . Fabricators . | . . . . Repair Stations . | . . . . Recycling Units . | . . . . Scanalyzers . | . . . . Garrison Access . | . . . . Total Hacks . | . . . . Successful . | . . . . Failed . | . . . . Catastrophic . | . . . . Database Lockouts . | . . . . Manual . | . . . . Terminals . | . . . . Fabricators . | . . . . Repair Stations . | . . . . Recycling Units . | . . . . Scanalyzers . | . . . . Garrison Access . | . . . . Terminal Hacks . | . . . . Fabricator Hacks . | . . . . Repair Station Hacks . | . . . . Recycling Unit Hacks . | . . . . Scanalyzer . | . . . . Garrison Access Hacks . | . . . . Unauthorized Hacks . | . . . . Terminals . | . . . . Fabricators . | . . . . Repair Stations . | . . . . Recycling Units . | . . . . Scanalyzers . | . . . . Garrison Access . | . . . . Data Cores Recovered . | . . . . Used . | . . . . Hacking Detections . | . . . . Full Trace Events . | . . . . Feedback Events . | . . . . Feedback Blocked . | . . . . Robot Schematics Acquired . | . . . . Robots Built . | . . . . Authchips . | . . . . Time . | . . . . Total Robot Build Rating . | . . . . Part Schematics Acquired . | . . . . Parts Built . | . . . . Authchips . | . . . . Time . | . . . . Total Part Build Rating . | . . . . Parts Repaired . | . . . . Time . | . . . . Parts Recycled . | . . . . Recycled Matter . | . . . . Retrieved Matter . | . . . . Retrieved Components . | . . . . Parts Scanalyzed . | . . . . Part Schematics Acquired . | . . . . Parts Damaged . | . . . . Bothacking | -11 -10 -10 -9 ------------ Run | Yrd Mat Min Mat Used RIF Installer . | . . . . Robots Hacked . | . . . . Non-combat . | . . . . Combat . | . . . . Robot Hacks Applied . | . . . . Relay Couplers Released . | . . . . Fabnet Peak Effective % . | . . . . Robots Rewired . | . . . . Allies Hacked . | . . . . Hacks Repelled . | . . . . Allies | -11 -10 -10 -9 -------- Run | Yrd Mat Min Mat Total Allies . | . . . . Largest Group . | . . . . Highest-Rated Group . | . . . . Highest-Rated Ally . | . . . . Total Orders . | . . . . Ally Attacks . | . . . . Total Damage . | . . . . Kills . | . . . . Allies Corrupted . | . . . . Allies Melted . | . . . . Intel | -11 -10 -10 -9 ------- Run | Yrd Mat Min Mat Active Infowar (turns) . | . . . . Robot Analysis Total . | . . . . Derelict Logs Recovered . | . . . . Drone Launches . | . . . . Drone Recoveries . | . . . . Exploration | -11 -10 -10 -9 ------------- Run | Yrd Mat Min Mat Turns Passed 1104 | 24 63 51 966 Spaces Moved 436 | 40 85 69 242 Core 436 | 40 85 69 242 Treads . | . . . . Legs . | . . . . Wheels . | . . . . Hover . | . . . . Flight . | . . . . Fastest Speed 50 | 50 50 50 50 Average Speed 145 | 50 50 50 222 Slowest Speed 300 | 50 50 50 300 Overloaded Moves . | . . . . Propulsion Burnouts . | . . . . Robots Hopped . | . . . . Potential Cave-ins . | . . . . Cave-ins Triggered . | . . . . Exploration Rate (%) 19 | 3 27 23 23 Regions Visited 3 Branch Regions 1 Pre-discovered Areas . | . . . . Known Exits Taken . | . . . . Unknown Exits Taken 3 | 1 1 1 . Scrap Searched . | . . . . Spaces Dug . | . . . . Terrain Destroyed 68 | . . . 68 Melee . | . . . . Projectile 4 | . . . 4 AOE 64 | . . . 64 Terrain Rammed . | . . . . Walls Destroyed . | . . . . Machines Disabled . | . . . . Actions | -11 -10 -10 -9 --------- Run | Yrd Mat Min Mat Total 701 | 43 92 74 492 Wait 121 | . . . 121 Move 433 | 39 84 68 242 Hop . | . . . . Pick Up 19 | 2 1 . 16 Fast Attach 3 | . . . 3 Attach 14 | 2 . . 12 Detach 2 | . . . 2 Swap . | . . . . Drop 4 | . . . 4 Fire 105 | . 7 6 92 Melee . | . . . . Ram . | . . . . Kick . | . . . . Crush . | . . . . Escape Stasis . | . . . . Rewire . | . . . . Trap . | . . . . Miscellaneous . | . . . . Route ------- -11/Scrapyard -10/Materials -10/Mines -9/Materials (discovered 1 exit: [*Min]) History --------- Turn | Location | Event 4 | -11/Scrapyard | Discovered new exit (range 16) 25 | -11/Scrapyard | Entered Materials 84 | -10/Materials | Discovered new exit (range 6) 88 | -10/Materials | Entered Mines 133 | -10/Mines | Discovered new exit (range 11) 139 | -10/Mines | Entered Materials 139 | -9/Materials | Evolved 2 slots: Weapon x2 423 | -9/Materials | Lost 4 parts (1p1u2w) 690 | -9/Materials | Core integrity fell below 50% 711 | -9/Materials | Discovered new exit (range 15) 720 | -9/Materials | Lost 4 parts (4w) 972 | -9/Materials | Core integrity fell below 20% 982 | -9/Materials | Build established: Mutant 1105 | -9/Materials | Destroyed by G-34 Mercenary with Small Laser Last Messages --------------- U-05 Engineer builds a Wall. O-16 Technician destroyed. U-05 Engineer builds a Wall. U-05 Engineer lays Concrete. K-01 Serf collects debris. The unstable cave ceiling collapses. U-05 Engineer lays Concrete. Y-45 Defender destroyed. U-05 Engineer builds a Wall. U-05 Engineer lays Concrete. U-05 Engineer builds a Wall. U-05 Engineer lays Concrete. U-05 Engineer builds a Wall. The unstable cave ceiling collapses. U-05 Engineer lays Concrete. U-05 Engineer builds a Wall. U-05 Engineer lays Concrete. K-01 Serf collects debris. U-05 Engineer lays Concrete. K-01 Serf collects debris. Map ----- +----------------------------------------------------+ | ?????????????????????????????????????????????????? | | ?????????????????????????????????????????????????? | | ?????????????????????????????????????????????????? | | ?????????????????????????????????????????????????? | | ?????? ??????????????????????????????????????? | | ?????? < ??????????????????????????????????????? | | ?????? #? ???????????????????????????????????? | | ?????? ?? ??????????????????????????????????? | | ?????? ? #?????????????????????????????????? | | ??????# ## #?????????????????????????????????? | | ??????# ????##########????????????????????? | | ??????+ ?????# #????????????????????? | | ??????# ?????## """ """#?#?????????#????????? | | ??????# ????### """ R"# ###### #???????? | | ??????# %#?????# """ ""# #???????? | | ?###### #?????# # =%!*+ #???????? | | ?# % #?# # # !*# #???????? | | # % ###+###### /%%#??##### #???????? | | # %= # # #????????????????????? | | # =! =# # % #????????????????????? | | # = # #+########????????????????????? | | + *!= # # # #??????????????????????? | | ## ! + % # #! #??????????????????????? | | # !! # # # #??????????????????????? | | # % %# # # [ #??????????????????????? | | # !%# " # # @#??????????????????????? | | # !=# % # # #??????????????????????? | | ## ! =*#######+## # #??????????????????????? | | ## = * =%####### # #??????????????????????? | | = =!= ! = ##g####?????????????????????? | | |* % ! =* g +?????????????????????? | | *] !| ! ####?????????????????????? | | /* #????????????????????????? | | %%[ #????????????????????????? | | % ####????????????????????????? | | #???????????????????????????? | | %% #???????????????????????????? | | % [#####+#???????????????????????????? | | [%###???????????????????????????????? | | #######+#####??????????????????????????????? | | ### % %%% #??????????????????????????????? | | #?# = #??????????????????????????????? | | ###+###?# "" * #??????????????????????????????? | | ????????#"""" !%!#??????????????????????????????? | | ????????#"""" !=!#??????????????????????????????? | | ????????#""""" =! ################+######????????? | | ????????# = %+=%*!! #????????? | | ????????# !=############### #????????? | | ????????###########?????????????# #????????? | | ??????????????????????????????### ####????????? | +----------------------------------------------------+ Best States ------------- Heat Dissipation 28 Energy Generation 14 Energy Capacity 280 Matter Stores 300 Matter Capacity 300 Sight Range 16 Terrain Scan Density 10 Evasion (%) 50 Particle Charging 15 Item Schematics ----------------- None Robot Schematics ------------------ None Fabricated ------------ Nothing Repaired ---------- Nothing Alien Tech Used ----------------- None Achievements -------------- None Challenges ------------ None Game ------ Seed DecoderSalvageCompactor Manual? 0 Play Time 00:13:55 Cumulative 77.2 hours Start 2025.08.02 @ 15:44:19 End 2025.08.02 @ 16:53:54 Sessions 1 Manual Loads 0 Difficulty Rogue Special Mode None Game No. 312 Rogue 312 Adventurer 0 Explorer 0 Win Type - Total 0 Types 0/0/0/0/0/0/0/0/0/0 Lore% 28 Gallery% 34 Achievement% 28 Wizard Run 0 Options --------- Layout 2 ASCII 0 Keyboard 0 Movement Mouse Keybinds 0 Fullscreen 2 Font 24/Smallcaps Map View 50x44 Zoom Use 0% Tactical HUD 0 Map Filters NONE Filters NONE Steam 1 RUN: ba0747fa-a6c6-4b5c-8862-21ab3ee14647